bitfinex/quotes_ETHUSD_20240828
["timestamp","ask_amount","ask_price","bid_price","bid_amount"]
[1724806289191,4.07697,2452.8,2452.5,2.3736]
[1724806289693,4.07697,2452.8,2452.4,5.53021614]
[1724806289894,0.815371,2452.8,2452.4,5.53021614]
[1724806290094,4.0767,2453.0,2452.4,5.53021614]
[1724806290095,4.07747,2452.5,2452.4,5.53021614]
[1724806290543,4.07716,2452.7,2452.2,2.4682]
[1724806290722,4.07716,2452.7,2452.2,5.4682]
[1724806291927,4.07747,2452.5,2452.2,3.0]
[1724806292242,4.07734,2452.6,2452.2,3.0]
[1724806292408,4.07716,2452.7,2452.2,3.0]
[1724806292612,4.0769,2452.9,2452.4,5.53021614]
[1724806292927,8.15381,2452.9,2452.4,5.53021614]
[1724806293091,4.0769,2452.9,2452.4,5.53021614]
[1724806293437,4.07697,2452.8,2452.4,5.53021614]
[1724806293740,4.0769,2452.9,2452.4,5.53021614]
[1724806294225,4.07664,2453.0,2452.4,5.61175711]
[1724806294540,4.07628,2453.3,2452.8,2.3057]
[1724806295034,4.07647,2453.2,2452.8,2.3057]
[1724806295251,4.07648,2453.1,2452.8,2.3057]
[1724806295463,4.07648,2453.1,2452.7,5.53021614]
[1724806295761,0.0518889,2453.0,2452.7,5.53021614]
[1724806295926,0.0518889,2453.0,2452.7,5.61175078]
[1724806297064,4.07697,2452.8,2452.5,3.0]
[1724806297256,0.05209078,2452.7,2452.5,3.0]
[1724806297426,4.0768,2452.9,2452.5,3.0]
[1724806297631,0.05209078,2452.8,2452.5,3.0]
[1724806298883,0.05209078,2452.8,2452.6,2.2843]
[1724806299259,8.15339,2453.0,2452.6,2.2843]
[1724806299415,4.07699,2452.8,2452.5,3.0]
[1724806299615,8.15409,2452.8,2452.5,3.0]
[1724806299851,4.12906676,2452.7,2452.5,3.0]
[1724806300263,0.05192676,2452.7,2452.5,3.0]
[1724806300432,4.07682,2452.9,2452.5,3.0]
[1724806300638,0.05196461,2452.8,2452.5,3.0]
[1724806301451,4.12896461,2452.8,2452.5,3.0]
[1724806302067,0.05196461,2452.8,2452.5,3.0]
[1724806302376,4.07607,2453.4,2452.7,5.53021614]
[1724806302528,4.07607,2453.4,2452.8,0.0815297]
[1724806303071,4.07633,2453.2,2452.8,0.0815297]
[1724806303269,8.15275,2453.2,2452.8,0.0815297]
[1724806303442,4.07633,2453.2,2452.8,0.0815297]
[1724806304028,8.15219,2453.4,2452.8,0.0815297]
[1724806304231,4.07616,2453.3,2452.8,0.0815297]
[1724806304428,4.07633,2453.2,2452.7,5.53021614]
[1724806304641,8.15274,2453.2,2452.7,5.53021614]
[1724806304848,4.07633,2453.2,2452.8,0.08152971]
[1724806306670,8.15275,2453.2,2452.8,0.08152971]
[1724806306871,4.07633,2453.2,2452.8,0.08152971]
[1724806307231,4.07599,2453.4,2453.0,5.53021614]
[1724806307435,8.15145,2453.6,2453.3,5.53021614]
[1724806307745,4.0763,2453.2,2453.1,2.2689]
[1724806307941,4.07657,2453.1,2452.9,3.0]
[1724806308141,4.07664,2453.0,2452.8,3.0]
[1724806308561,0.05244407,2452.9,2452.8,3.0]
[1724806308933,4.07657,2453.1,2452.8,3.0]
[1724806309160,0.05244407,2452.9,2452.8,4.06348698]
[1724806309373,4.07626,2453.3,2453.0,4.14143258]
[1724806309736,8.15182,2453.5,2453.1,2.3455]
[1724806310449,4.07601,2453.4,2453.1,2.3455]
[1724806311386,4.0759,2453.5,2453.1,2.76436088]
[1724806311691,4.0759,2453.5,2453.1,2.84588097]
[1724806311888,4.0759,2453.5,2453.3,4.14143258]
[1724806312243,4.07597,2453.4,2453.3,4.14143258]
[1724806312496,4.07482,2454.1,2453.3,4.83201193]
[1724806312497,4.07528,2453.9,2453.3,4.83201193]
[1724806312650,4.07559,2453.7,2453.5,4.14143258]
[1724806313075,4.07559,2453.7,2453.3,4.91352404]
[1724806313076,8.1512,2453.7,2453.3,4.91352404]
[1724806313393,4.07559,2453.7,2453.3,4.22294469]
[1724806315789,8.15121,2453.7,2453.3,4.22294469]
[1724806315959,4.07564,2453.6,2453.3,4.58699478]
[1724806316569,4.07548,2453.7,2453.3,4.58699478]
[1724806317165,4.07567,2453.6,2453.3,4.58699478]
[1724806317554,0.05350371,2453.5,2453.3,4.58699478]
[1724806317854,0.05350371,2453.5,2453.4,0.46685072]
[1724806318673,4.12931371,2453.5,2453.4,0.46685072]
[1724806318863,4.12931371,2453.5,2453.3,4.58699478]
[1724806319958,0.05350371,2453.5,2453.1,4.55063258]
[1724806320195,4.0763,2453.2,2453.0,3.0]
[1724806320560,0.05350371,2453.1,2453.0,3.0]
[1724806320763,0.05350371,2453.1,2453.0,3.95334326]
[1724806321000,0.05350371,2453.1,2453.0,4.03487179]
[1724806321207,15.01532457,2454.6,2453.0,4.03487179]
[1724806321208,4.07578,2453.6,2453.0,4.03487179]
[1724806321494,4.07578,2453.6,2453.3,4.14143258]
[1724806321495,0.05350371,2453.5,2453.3,4.14143258]
[1724806321694,0.05350371,2453.5,2453.3,4.55557584]
[1724806322606,4.07567,2453.6,2453.3,4.55557584]
[1724806323056,0.05350371,2453.5,2453.3,4.55557584]
[1724806323455,8.1511,2453.7,2453.3,4.55557584]
[1724806323699,4.12922371,2453.6,2453.3,4.55557584]
[1724806326402,4.07597,2453.4,2453.3,4.14143258]
[1724806326607,0.05350371,2453.6,2452.9,5.4551]
[1724806326780,4.0761,2453.4,2452.9,5.4551]
[1724806326976,4.07624,2453.3,2452.9,5.4551]
[1724806327197,4.0761,2453.4,2453.0,4.14143258]
[1724806327523,0.05362984,2453.3,2453.1,0.95965326]
[1724806327879,0.05362984,2453.3,2453.2,4.14143258]
[1724806328382,4.07592,2453.5,2453.2,4.14143258]
[1724806328721,4.07598,2453.4,2453.2,4.14143258]
[1724806328954,4.12960984,2453.4,2453.2,4.14143258]
[1724806329129,0.05362984,2453.4,2453.2,4.65154116]
[1724806329282,4.12964984,2453.4,2453.2,4.65154116]
[1724806330618,0.05362984,2453.4,2453.2,4.65154116]
[1724806331621,4.12967984,2453.4,2453.2,4.65154116]
[1724806331919,8.15242,2453.3,2452.9,9.59653258]
[1724806332121,4.07637,2453.2,2452.9,9.59653258]
[1724806332622,0.05362984,2453.1,2452.9,9.59653258]
[1724806332845,0.05362984,2453.1,2453.0,1.00057326]
[1724806333045,0.05362984,2453.1,2452.9,9.59653258]
[1724806333847,4.07614,2453.3,2452.9,9.59653258]
[1724806334017,0.05362984,2453.0,2452.9,9.59653258]
[1724806334205,4.07632,2453.2,2452.9,9.59653258]
[1724806334405,0.05362984,2453.0,2452.9,7.14143258]
[1724806334737,0.05362984,2453.0,2452.9,7.89649584]
[1724806334940,2.3731,2453.5,2452.9,7.89649584]
[1724806335117,4.07696,2452.9,2452.6,7.14143258]
[1724806335319,8.1539,2452.9,2452.7,3.0]
[1724806335622,0.05332713,2452.8,2452.7,4.2145463]
[1724806335828,0.05332713,2452.8,2452.7,3.08153703]
[1724806336014,4.07633,2453.2,2452.7,3.08153703]
[1724806336207,0.05332713,2452.8,2452.7,3.08153703]
[1724806336479,4.07649,2453.1,2452.7,3.08153703]
[1724806336641,0.05332713,2452.8,2452.7,3.0]
[1724806336800,6.44891,2453.5,2452.4,0.85467548]
[1724806336801,4.07581,2453.5,2452.4,0.85467548]
[1724806337143,4.14143258,2453.9,2451.9,2.12737961]
[1724806337144,4.07804,2452.2,2451.9,2.12737961]
[1724806337439,4.0774,2452.6,2452.0,8.00950125]
[1724806337641,4.0774,2452.6,2452.1,1.10731183]
[1724806337862,0.05332713,2452.5,2452.1,1.10731183]
[1724806338360,4.13087713,2452.5,2452.1,1.10731183]
[1724806338714,0.05332713,2452.5,2452.1,1.10731183]
[1724806339038,0.05332713,2452.5,2452.3,4.14143258]
[1724806339413,4.07722,2452.7,2452.3,4.14143258]
[1724806339750,4.07732,2452.6,2452.3,4.14143258]
[1724806340055,4.07803,2452.2,2452.0,4.14143258]
[1724806340462,4.0783,2452.1,2451.8,3.4092]
[1724806340620,0.05332713,2452.1,2451.8,3.4092]
[1724806340817,4.07805,2452.2,2451.9,1.00000326]
[1724806341069,0.05216636,2452.0,2451.9,1.00000326]
[1724806341546,4.07814,2452.1,2451.9,1.00000326]
[1724806341740,0.05216636,2452.0,2451.8,3.0]
[1724806342327,4.07805,2452.2,2451.8,3.0]
[1724806342642,4.07773,2452.4,2452.0,4.14143258]
[1724806342958,4.078,2452.2,2452.0,4.14143258]
[1724806343333,8.15548,2452.4,2452.0,4.14143258]
[1724806343559,0.05216636,2452.3,2452.0,4.98131198]
[1724806344868,0.05216636,2452.3,2452.1,2.50816059]
[1724806345254,4.07733,2452.6,2452.1,2.50816059]
[1724806345255,4.07732,2452.6,2452.1,2.4266]
[1724806345566,4.07757,2452.5,2452.1,2.4266]
[1724806345756,0.05123263,2452.5,2452.1,3.24894713]
[1724806345922,0.05123263,2452.5,2452.2,3.0]
[1724806346129,4.12870263,2452.5,2452.2,3.0]
[1724806346359,4.07764,2452.4,2452.2,4.12302591]
[1724806346529,4.07764,2452.4,2452.1,2.4266]
[1724806346737,4.07764,2452.4,2452.1,3.0]
[1724806346738,0.0512705,2452.3,2452.1,3.0]
[1724806346937,0.0512705,2452.3,2452.1,3.94566326]
[1724806347124,4.07797,2452.2,2452.0,4.14143258]
[1724806347323,4.07846,2451.9,2451.8,7.36900909]
[1724806347553,0.0513336,2451.9,2451.8,10.36900909]
[1724806347868,0.0513336,2451.9,2451.8,11.34590827]
[1724806348160,4.07825,2452.1,2451.8,15.48734085]
[1724806348362,0.05101805,2451.9,2451.8,15.48734085]
[1724806348544,4.07824,2452.1,2451.8,15.48734085]
[1724806348859,4.07788,2452.3,2451.9,1.54873409]
[1724806349161,4.07788,2452.3,2451.9,4.54873409]
[1724806349371,4.07788,2452.3,2451.9,4.6302941]
[1724806349661,4.07773,2452.4,2451.9,4.6302941]
[1724806349864,4.07785,2452.3,2451.9,4.6302941]
[1724806350471,4.07785,2452.3,2452.0,1.7117635]
[1724806351266,4.07797,2452.2,2452.0,1.7117635]
[1724806351525,2.4189,2451.8,2451.5,0.85467548]
[1724806351679,2.4189,2451.8,2450.9,0.08159335]
[1724806351680,4.08008,2451.0,2450.9,0.08159335]
[1724806351978,4.07993,2451.1,2450.7,2.37379844]
[1724806352128,4.07993,2451.1,2450.8,0.31897718]
[1724806352578,4.07898,2451.6,2451.0,4.14143258]
[1724806352881,4.07898,2451.6,2451.1,0.50388901]
[1724806353044,4.07915,2451.5,2451.1,0.50388901]
[1724806353673,4.07915,2451.5,2451.1,3.50388901]
[1724806353977,4.07858,2451.9,2451.3,4.14143258]
[1724806354172,4.07872,2451.8,2451.4,0.65699326]
[1724806354370,4.07815,2452.1,2451.4,0.65699326]
[1724806354532,4.07963,2451.2,2451.1,3.0]
[1724806354731,8.15951,2451.2,2450.9,3.0]
[1724806355046,4.07974,2451.2,2451.0,0.24285]
[1724806356266,4.07915,2451.5,2451.0,4.38428258]
[1724806356436,4.07915,2451.5,2451.1,3.0]
[1724806356638,4.07932,2451.4,2451.1,3.74658828]
[1724806356975,4.07932,2451.4,2450.8,3.0]
[1724806357131,4.07976,2451.2,2450.7,3.4092]
[1724806357335,4.07976,2451.2,2450.7,4.40711326]
[1724806357531,3.0497,2451.1,2450.1,2.4666]
[1724806357732,4.08022,2450.9,2450.2,0.08161436]
[1724806357967,4.08047,2450.7,2450.2,0.66896469]
[1724806358170,8.16043,2450.9,2450.2,0.66896469]
[1724806358481,6.5796,2451.1,2450.4,4.14143258]
[1724806358647,4.0799,2451.1,2450.4,4.14143258]
[1724806359049,4.08014,2450.9,2450.4,4.14143258]
[1724806359226,4.08014,2450.9,2450.5,3.0]
[1724806359432,4.08014,2450.9,2450.5,3.83599467]
[1724806359632,4.08014,2450.9,2450.5,3.0]
[1724806359843,4.08014,2450.9,2450.3,1.13689973]
[1724806359844,4.08014,2450.9,2450.3,4.13689973]
[1724806361076,4.0806,2450.7,2450.3,1.13689973]
[1724806361235,8.16116,2450.7,2450.2,0.4092]
[1724806361434,4.08082,2450.5,2449.9,0.4092]
[1724806361679,4.08082,2450.5,2449.9,0.69052]
[1724806362643,4.08058,2450.7,2449.9,4.83195258]
[1724806362843,4.08058,2450.7,2450.0,3.0]
[1724806363070,4.08058,2450.7,2450.0,3.78319526]
[1724806363379,4.08058,2450.7,2450.2,4.14143258]
[1724806363380,8.16115,2450.7,2450.2,4.14143258]
[1724806363539,4.08056,2450.7,2450.3,3.0]
[1724806363742,4.07993,2451.1,2450.5,4.14143258]
[1724806364052,4.08014,2450.9,2450.5,4.14143258]
[1724806364490,8.16036,2450.9,2450.5,4.14143258]
[1724806364780,4.0803,2450.8,2450.5,4.14143258]
[1724806364935,4.08014,2450.9,2450.5,4.14143258]
[1724806365140,4.08014,2450.9,2450.5,4.85557584]
[1724806366355,4.0803,2450.8,2450.5,4.85557584]
[1724806366605,4.0803,2450.8,2450.5,4.14143258]
[1724806366805,4.08014,2450.9,2450.5,4.14143258]
[1724806367012,8.1604,2450.9,2450.5,4.14143258]
[1724806367183,4.08008,2451.0,2450.3,3.0]
[1724806367385,0.55,2450.9,2450.1,9.44593258]
[1724806367584,4.08088,2450.5,2450.1,9.44593258]
[1724806368089,4.08059,2450.7,2450.4,4.14143258]
[1724806368287,4.63025,2450.9,2450.4,4.56373785]
[1724806368288,4.08041,2450.8,2450.4,4.56373785]
[1724806368513,4.0805,2450.7,2450.4,4.56373785]
[1724806368683,4.08091,2450.5,2450.1,9.44593258]
[1724806368890,8.16181,2450.5,2450.1,9.44593258]
[1724806369103,4.0809,2450.5,2450.1,9.44593258]
[1724806369437,4.0809,2450.5,2450.1,10.53789736]
[1724806370117,8.16179,2450.5,2450.1,10.53789736]
[1724806371129,4.08089,2450.5,2450.1,10.53789736]
[1724806371517,4.08057,2450.7,2450.1,10.53789736]
[1724806371700,4.08018,2450.9,2450.4,4.14143258]
[1724806371901,2.3752,2451.1,2450.2,1.05378974]
[1724806371902,4.08071,2450.6,2450.2,1.05378974]
[1724806372103,4.08113,2450.3,2450.1,4.14143258]
[1724806372324,4.08113,2450.3,2449.9,0.4092]
[1724806372489,4.08147,2450.1,2449.8,6.43403258]
[1724806372691,4.08113,2450.3,2449.8,6.43403258]
[1724806372891,4.08138,2450.2,2449.8,7.07743584]
[1724806373703,4.08113,2450.3,2449.8,7.48643584]
[1724806374137,8.1624,2450.3,2449.8,7.48643584]
[1724806374452,4.08132,2450.2,2449.8,7.48643584]
[1724806375209,4.08113,2450.3,2449.9,0.74864358]
[1724806375644,4.08091,2450.5,2449.9,0.74864358]
[1724806375851,2.4027,2450.7,2450.4,4.14143258]
[1724806375852,4.08054,2450.7,2450.4,4.14143258]
[1724806376012,4.08054,2450.7,2450.4,4.78636584]
[1724806376232,8.16116,2450.7,2450.4,4.14143258]
[1724806376511,4.08075,2450.6,2450.2,6.44933258]
[1724806376719,4.08075,2450.6,2450.3,0.23895154]
[1724806377223,8.16102,2450.7,2450.3,0.23895154]
[1724806377530,4.08047,2450.7,2450.3,0.23895154]
[1724806377732,4.08026,2450.9,2450.4,4.14143258]
[1724806377947,4.08011,2451.0,2450.6,4.14143258]
[1724806378528,4.08014,2450.9,2450.6,4.14143258]
[1724806379364,4.08014,2450.9,2450.4,4.14143258]
[1724806379669,8.16111,2450.7,2450.4,0.96882841]
[1724806379963,4.08054,2450.7,2450.3,3.23895154]
[1724806380170,4.08083,2450.5,2450.3,3.23895154]
[1724806380329,2.4443,2450.8,2450.0,4.55043258]
[1724806380530,4.08121,2450.3,2450.1,1.77190762]
[1724806380855,4.08121,2450.3,2450.0,4.55043258]
[1724806381069,4.12750396,2450.2,2450.0,0.409]
[1724806381356,4.08146,2450.1,2450.0,0.409]
[1724806381559,4.08129,2450.2,2450.0,0.409]
[1724806381742,0.0455097,2450.1,2450.0,0.409]
[1724806382074,4.08146,2450.1,2450.0,0.409]
[1724806382560,4.12695705,2450.1,2449.9,12.42]
[1724806383324,0.04549705,2450.1,2449.9,12.42]
[1724806383522,4.12710705,2450.1,2449.9,12.42]
[1724806383754,0.04549705,2450.1,2449.9,13.66771393]
[1724806384762,0.04549705,2450.1,2449.9,1.24771393]
[1724806384919,0.04549705,2450.1,2449.9,4.24771393]
[1724806385319,4.08163,2450.0,2449.4,2.2827]
[1724806385538,4.0823,2449.6,2449.3,11.51044167]
[1724806385780,4.08207,2449.8,2449.3,4.14143258]
[1724806385934,0.04529471,2449.7,2449.3,4.14143258]
[1724806386135,4.0822,2449.7,2449.3,4.14143258]
[1724806386451,0.04529471,2449.6,2449.0,4.55043258]
[1724806386699,0.04529471,2449.6,2448.9,2.4338]
[1724806386700,4.08299,2449.2,2448.9,2.4338]
[1724806386867,4.08299,2449.2,2448.9,3.34525472]
[1724806387175,4.12824851,2449.1,2448.9,0.91145472]
[1724806387385,4.12824851,2449.1,2448.7,0.409]
[1724806387386,0.04497851,2449.1,2448.8,4.14143258]
[1724806387682,4.08275,2449.4,2449.0,4.14143258]
[1724806388053,4.08247,2449.5,2449.0,4.14143258]
[1724806388280,4.08242,2449.6,2449.2,4.14143258]
[1724806388874,4.08254,2449.5,2449.1,2.4163]
[1724806389077,4.08254,2449.5,2449.1,3.07207326]
[1724806389292,8.16546,2449.4,2449.1,0.65577326]
[1724806389495,6.55043,2449.9,2449.0,4.14143258]
[1724806389496,4.08224,2449.7,2449.0,4.14143258]
[1724806389659,4.08267,2449.4,2449.0,4.14143258]
[1724806390395,4.08298,2449.2,2449.0,4.14143258]
[1724806390592,4.08248,2449.5,2449.0,4.83005584]
[1724806391701,4.08271,2449.4,2449.0,4.83005584]
[1724806391897,8.16487,2449.6,2449.1,0.48300558]
[1724806392416,4.08251,2449.5,2449.1,0.48300558]
[1724806394575,4.08264,2449.4,2449.1,0.48300558]
[1724806396907,4.08241,2449.6,2449.1,0.48300558]
[1724806396908,4.08246,2449.5,2449.1,0.48300558]
[1724806397609,4.08241,2449.6,2449.2,2.81350614]
[1724806397810,4.08187,2449.9,2449.5,4.14143258]
[1724806398104,2.4389,2450.2,2449.7,4.14143258]
[1724806398105,4.08197,2449.8,2449.7,4.14143258]
[1724806398315,4.08197,2449.8,2449.5,4.14143258]
[1724806398465,4.0818,2449.9,2449.5,4.14143258]
[1724806398666,4.08173,2450.0,2449.6,0.42230737]
[1724806398897,4.08181,2449.9,2449.6,0.42230737]
[1724806399222,2.3908,2450.5,2449.7,6.60393258]
[1724806399511,4.08138,2450.2,2449.8,4.84405658]
[1724806399886,4.08159,2450.1,2449.8,4.84405658]
[1724806400088,4.08165,2450.0,2449.8,4.84405658]
[1724806400297,4.08142,2450.2,2449.9,0.73065566]
[1724806400535,4.08154,2450.1,2449.8,4.14143258]
[1724806400671,4.08246,2449.5,2449.3,3.0]
[1724806400873,4.08246,2449.5,2449.2,3.0]
[1724806401176,4.08266,2449.4,2449.2,3.49961081]
[1724806401908,4.08266,2449.4,2449.2,3.0]
[1724806402110,4.08279,2449.3,2449.2,3.0]
[1724806403582,4.08266,2449.4,2449.2,3.0]
[1724806403903,4.08256,2449.5,2449.2,3.0]
[1724806404085,4.08279,2449.3,2449.1,4.14143258]
[1724806404625,4.08296,2449.2,2449.1,4.14143258]
[1724806404794,4.08279,2449.3,2449.1,4.14143258]
[1724806405194,8.1657,2449.3,2449.1,4.14143258]
[1724806405397,4.08279,2449.3,2449.1,4.14143258]
[1724806406015,4.08258,2449.5,2449.1,4.59647584]
[1724806406192,8.16515,2449.5,2449.1,4.59647584]
[1724806406790,4.08292,2449.3,2449.1,4.14143258]
[1724806407097,4.0838,2448.7,2448.5,4.14143258]
[1724806407308,4.08396,2448.6,2448.2,6.27245503]
[1724806407508,4.08439,2448.4,2448.2,4.14143258]
[1724806407794,0.04323267,2448.3,2448.1,0.00483837]
[1724806408037,4.08463,2448.2,2448.1,0.00483837]
[1724806408231,8.16926,2448.2,2448.1,0.00483837]
[1724806408392,9.45943097,2448.2,2448.1,0.00483837]
[1724806409937,13.54406097,2448.2,2448.1,0.00483837]
[1724806411110,9.45943097,2448.2,2448.1,0.00483837]
[1724806411851,8.7624547,2448.2,2448.1,0.00483837]
[1724806413529,0.0431947,2448.2,2448.1,0.00483837]
[1724806413744,8.22439258,2449.2,2448.1,0.00483837]
[1724806413745,4.08444,2448.4,2448.1,0.00483837]
[1724806414043,0.03986479,2448.3,2448.1,0.00483837]
[1724806414442,4.12435479,2448.3,2448.1,0.00483837]
[1724806414845,8.16926,2448.2,2448.1,0.00483837]
[1724806415359,8.20912479,2448.2,2448.1,0.00483837]
[1724806415569,8.75912479,2448.2,2448.1,0.00483837]
[1724806416440,4.67449479,2448.2,2448.1,0.00483837]
[1724806416646,0.03986479,2448.2,2448.1,0.00483837]
[1724806417049,4.08425,2448.5,2448.1,0.00483837]
[1724806417350,4.08425,2448.5,2448.1,0.65929491]
[1724806417727,0.03986479,2448.4,2448.1,0.65929491]
[1724806418061,0.03986479,2448.4,2448.2,4.22312299]
[1724806418261,0.00282288,2448.4,2448.3,2.39828069]
[1724806418463,0.0360071,2448.4,2448.3,5.39828069]
[1724806418621,4.08333,2449.0,2448.3,5.80728069]
[1724806418818,4.08347,2448.9,2448.5,4.14143258]
[1724806419709,8.16702,2448.9,2448.5,4.14143258]
[1724806419869,4.08322,2449.1,2448.5,4.14143258]
[1724806420070,8.1665,2449.1,2448.6,0.51363039]
[1724806420291,4.08322,2449.1,2448.8,4.14143258]
[1724806420500,8.16644,2449.1,2448.8,4.14143258]
[1724806420712,4.08322,2449.1,2448.8,4.14143258]
[1724806420892,8.16647,2449.1,2448.8,4.14143258]
[1724806421100,4.0833,2449.0,2448.8,4.55557584]
[1724806423693,4.08345,2449.0,2448.5,4.14143258]
[1724806423891,4.08364,2448.8,2448.5,4.14143258]
[1724806424822,4.08345,2449.0,2448.5,4.14143258]
[1724806425186,4.0835,2448.9,2448.5,4.14143258]
[1724806425393,4.0835,2448.9,2448.6,0.51363039]
[1724806425821,0.040341,2448.8,2448.6,0.51363039]
[1724806426022,4.124031,2448.8,2448.6,0.51363039]
[1724806426231,0.040341,2448.8,2448.6,0.51363039]
[1724806427189,4.123981,2448.8,2448.6,0.51363039]
[1724806428031,4.08412,2448.6,2448.2,4.14143258]
[1724806428234,4.08421,2448.5,2448.2,4.14143258]
[1724806428436,4.12448769,2448.5,2448.1,2.35023837]
[1724806428603,4.12448769,2448.5,2448.1,2.99940546]
[1724806428810,4.08432,2448.4,2448.1,2.99940546]
[1724806429332,4.08518,2447.9,2447.5,0.85467548]
[1724806429535,4.08539,2447.8,2447.5,0.85467548]
[1724806429898,0.04010041,2447.7,2447.5,0.85467548]
[1724806430432,0.0396698,2447.6,2447.5,0.85467548]
[1724806430811,4.0849,2448.1,2447.5,6.07512529]
[1724806431012,4.08524,2447.9,2447.5,4.99610806]
[1724806431308,0.03808654,2447.8,2447.5,4.99610806]
[1724806431542,0.03808654,2447.8,2447.6,0.86718213]
[1724806431742,4.08514,2447.9,2447.6,0.86718213]
[1724806431930,0.03808654,2447.7,2447.6,0.86718213]
[1724806432254,0.03814989,2447.7,2447.6,0.86718213]
[1724806432408,4.08492,2448.1,2447.6,0.86718213]
[1724806432409,4.0849,2448.1,2447.6,0.86718213]
[1724806432607,0.03814989,2448.0,2447.7,4.7277616]
[1724806433943,0.03814989,2448.0,2447.9,4.14143258]
[1724806434145,0.03814989,2448.0,2447.9,4.63212034]
[1724806434302,4.084,2448.6,2447.9,7.63212034]
[1724806434509,4.084,2448.6,2448.2,4.14143258]
[1724806434758,4.08396,2448.7,2448.2,4.14143258]
[1724806435123,8.16785,2448.7,2448.2,4.14143258]
[1724806435645,4.08398,2448.6,2448.2,4.14143258]
[1724806435852,4.08389,2448.7,2448.2,6.63393258]
[1724806436142,4.08389,2448.7,2448.3,0.66339326]
[1724806436346,4.08352,2448.9,2448.4,4.14143258]
[1724806437350,4.0839,2448.7,2448.3,0.66339326]
[1724806437532,8.1678,2448.7,2448.2,7.04293258]
[1724806437739,4.0839,2448.7,2448.2,7.04293258]
[1724806438953,4.08358,2448.9,2448.2,7.04293258]
[1724806439260,4.08358,2448.9,2448.3,0.70429326]
[1724806439423,4.08356,2448.9,2448.5,4.14143258]
[1724806439626,4.08318,2449.1,2448.5,4.14143258]
[1724806439930,4.08347,2448.9,2448.6,0.41414326]
[1724806440336,4.08373,2448.8,2448.6,0.41414326]
[1724806440531,2.2794,2449.4,2448.3,4.14143258]
[1724806440532,4.08343,2449.0,2448.3,4.14143258]
[1724806440765,4.08405,2448.6,2448.3,4.14143258]
[1724806440968,4.08419,2448.5,2448.3,4.14143258]
[1724806441461,4.08429,2448.4,2448.2,0.409]
[1724806441663,4.08419,2448.5,2448.2,3.409]
[1724806442963,0.03947994,2448.4,2448.2,3.409]
[1724806443127,0.03947994,2448.4,2448.2,4.16404326]
[1724806443458,4.08397,2448.6,2448.2,4.16404326]
[1724806443663,0.03936596,2448.3,2448.2,4.16404326]
[1724806443826,4.08397,2448.6,2448.2,4.16404326]
[1724806444164,0.03936596,2448.5,2448.2,4.16404326]
[1724806444386,0.03936596,2448.5,2448.4,4.14143258]
[1724806444529,4.08363,2448.8,2448.4,4.14143258]
[1724806444725,0.03947994,2448.5,2448.4,4.14143258]
[1724806444932,4.08363,2448.8,2448.4,4.14143258]
[1724806445125,0.03947994,2448.5,2448.4,4.14143258]
[1724806445335,8.16734,2448.8,2448.4,4.14143258]
[1724806445529,0.03947994,2448.5,2448.4,4.14143258]
[1724806446162,8.1674,2448.8,2448.4,4.14143258]
[1724806446369,0.03947994,2448.5,2448.4,4.14143258]
[1724806446574,8.1674,2448.8,2448.4,4.14143258]
[1724806446727,0.03947994,2448.5,2448.4,4.14143258]
[1724806446931,2.4392,2449.0,2448.4,4.14143258]
[1724806447133,0.79392,2448.9,2448.4,4.14143258]
[1724806447340,4.08381,2448.7,2448.4,4.14143258]
[1724806447776,0.03947994,2448.6,2448.4,4.14143258]
[1724806447939,4.08354,2448.9,2448.5,2.3488]
[1724806448139,0.03947994,2448.8,2448.5,2.3488]
[1724806451187,4.12312994,2448.8,2448.4,0.75504326]
[1724806451388,4.0838,2448.7,2448.3,6.63033258]
[1724806451595,4.12377789,2448.6,2448.3,4.14143258]
[1724806452294,0.03970789,2448.6,2448.3,4.14143258]
[1724806452520,4.12367789,2448.6,2448.3,5.13427584]
[1724806452992,0.03970789,2448.6,2448.3,5.13427584]
[1724806453555,0.03970789,2448.6,2448.3,5.21596145]
[1724806453793,0.03970789,2448.6,2448.3,5.13427584]
[1724806454006,4.08323,2449.1,2448.4,0.85432758]
[1724806454154,0.03970789,2449.0,2448.4,0.85432758]
[1724806454355,4.0835,2448.9,2448.4,0.85432758]
[1724806454590,4.08378,2448.8,2448.4,0.85432758]
[1724806454782,0.03970789,2448.7,2448.4,0.85432758]
[1724806455097,2.4004,2449.3,2448.6,2.2501]
[1724806455280,4.08257,2449.5,2448.9,4.14143258]
[1724806455591,4.08257,2449.5,2449.0,2.3945]
[1724806455791,4.08273,2449.4,2449.0,2.3945]
[1724806456497,4.08282,2449.3,2449.0,2.3945]
[1724806456799,4.08203,2449.8,2449.2,4.14143258]
[1724806457068,4.08203,2449.8,2449.5,4.14143258]
[1724806457216,4.08229,2449.6,2449.5,4.14143258]
[1724806457403,4.08229,2449.6,2449.1,4.14143258]
[1724806457605,4.08274,2449.4,2449.1,4.14143258]
[1724806457909,4.08313,2449.1,2449.0,3.0]
[1724806458413,0.03970789,2449.1,2449.0,3.0]
[1724806458618,4.12292789,2449.1,2448.9,4.14143258]
[1724806459120,0.03970789,2449.1,2448.9,4.14143258]
[1724806459331,0.03970789,2449.1,2448.9,5.10149584]
[1724806460911,0.03970789,2449.1,2448.9,5.18316206]
[1724806461095,0.03970789,2449.1,2448.9,5.10149584]
[1724806461422,0.04048018,2449.0,2448.9,5.10149584]
[1724806461582,8.16589,2449.3,2448.9,5.10149584]
[1724806461785,0.04048018,2449.2,2448.9,5.10149584]
[1724806461986,4.08293,2449.3,2448.9,5.10149584]
[1724806461987,4.08293,2449.3,2449.0,0.75606958]
[1724806462225,0.04048018,2449.2,2449.0,0.75606958]
[1724806462427,4.08293,2449.3,2449.0,0.75606958]
[1724806462729,0.04048018,2449.2,2449.0,0.75606958]
[1724806462901,0.04048018,2449.2,2448.9,7.23222406]
[1724806462902,4.12352018,2449.2,2448.9,5.10149584]
[1724806463223,4.08289,2449.3,2448.9,5.10149584]
[1724806463224,0.04048018,2449.1,2448.9,5.10149584]
[1724806463404,8.16577,2449.3,2449.0,0.72322589]
[1724806463590,4.12346018,2449.2,2448.9,4.14143258]
[1724806463787,4.08316,2449.1,2448.9,4.14143258]
[1724806464303,0.04048018,2449.0,2448.9,4.14143258]
[1724806464624,0.04048018,2449.0,2448.9,3.0]